Cogmind - Beta 17 @@@ ROGUE MODE // 2026.07.01 @ 11:34:26 Player: eph7ra Result: Destroyed by Y-45 Defender with Heavy Assault Rifle Performance ------------- Evolutions (1) 500 Regions Visited (2) 400 Robots Destroyed (22) 110 Value Destroyed (551) 551 Prototype IDs (0) 0 Alien Tech Used (0) 0 Bonus (0) 0 TOTAL SCORE: 1561 Bonus ------- None Cogmind --------- Core Integrity 0/400 Matter 300/300 Energy 99/100 System Corruption 0% Temperature Cool (9) Movement Core (700) Ox13 Location -9/Materials Parts ------- > --- POWER (1) -------- (None) > --- PROPULSION (3) --- (None) > --- UTILITY (3) ------ High-capacity Storage Unit > --- WEAPON (2) ------- Mining Claw > --- INVENTORY (20) --- Light Ion Engine Improved Ion Engine Compact Wheel Heat Sink Heat Sink Sensor Array Signal Interpreter Targeting Computer Targeting Computer Assault Rifle Peak State ------------ > --- POWER ------------ Light Ion Engine > --- PROPULSION ------- Light Treads Light Treads Light Treads > --- UTILITY ---------- High-capacity Storage Unit Targeting Computer Core Shielding > --- WEAPON ----------- Medium Laser Mining Claw > --- INVENTORY -------- Light Ion Engine Light Ion Engine Improved Ion Engine Compact Wheel Heat Sink Sensor Array Targeting Computer Targeting Computer Assault Rifle [Rating: 10] Favorites ----------- Power Light Ion Engine Engine Light Ion Engine Propulsion Light Treads Treads Light Treads Leg Aluminum Leg Wheel Wheel Utility High-capacity Storage Unit Storage High-capacity Storage Unit Processor Targeting Computer Protection Core Shielding Weapon Medium Laser Energy Gun Medium Laser Ballistic Gun Assault Rifle Slashing Weapon Mining Claw Build | -11 -10 -9 ------- Run | Yrd Mat Mat Slots Evolved 2 | . . 2 Power . | . . . Propulsion 1 | . . 1 Utility 1 | . . 1 Weapon . | . . . Parts Attached 23 | 5 6 12 Power 4 | 1 . 3 Engine 4 | 1 . 3 Core . | . . . Reactor . | . . . Propulsion 8 | 1 2 5 Treads 3 | . . 3 Leg 3 | 1 1 1 Wheel 2 | . 1 1 Hover . | . . . Flight . | . . . Utility 4 | 1 2 1 Device . | . . . Storage 2 | 1 1 . Processor 1 | . 1 . Hackware . | . . . Protection 1 | . . 1 Artifact . | . . . Weapon 7 | 2 2 3 Energy Gun 4 | 2 1 1 Energy Cannon . | . . . Ballistic Gun 2 | . 1 1 Ballistic Cannon . | . . . Launcher . | . . . Special Weapon . | . . . Impact Weapon . | . . . Slashing Weapon 1 | . . 1 Piercing Weapon . | . . . Special Melee Weapon . | . . . Unidentified Prototypes . | . . . Corrupted Parts 1 | . 1 . System Corruption 5 | . 5 . Parts Lost 17 | . 4 13 Power 4 | . 1 3 Propulsion 7 | . 1 6 Utility 2 | . . 2 Weapon 4 | . 2 2 Highest Loss Streak 7 | . 3 7 To Critical Strikes . | . . . Average Backups 7 | 4 7 8 Power 1 | . 1 2 Propulsion 3 | 3 4 1 Utility 2 | . . 3 Weapon . | . . 1 Tool/Special . | . . . Unused Backups 8 | . . 8 Power 2 | . . 2 Propulsion . | . . . Utility 6 | . . 6 Weapon . | . . . Tool/Special . | . . . Average Slot Usage (%) 79 | . 70 84 Engine 7 | . 4 8 Treads 12 | . . 19 Leg 9 | . 16 5 Wheel 1 | . . 2 Storage 14 | . 20 11 Processor 7 | . 2 10 Protection 4 | . . 6 Energy Gun 12 | . 18 9 Ballistic Gun 5 | . 7 3 Slashing Weapon 3 | . . 5 Peak Build Rating 10 | 5 6 10 Average Rating 6 | 4 4 8 On Entrance 3 | . 5 5 Avg Prop Armor Cover (%) 5 | . 16 4 Naked Turns . | . . . Heaviest Build 49 | 12 49 48 Greatest Support 60 | 10 20 60 Greatest Overweight (x) 13 | 1 4 13 Average Overweight (x) 1 | . 1 . Largest Inventory Capacity 20 | 8 20 20 Average Capacity 17 | 6 15 20 Most Carried 12 | 7 8 12 Average Carried 7 | 5 7 8 Final Capacity 20 | 8 20 20 Final Carried 10 | 7 8 10 Class Distribution -------------------- 100% | Mutant Dominant Class ---------------- Mutant | -10/Materials Mutant | -9/Materials Resources | -11 -10 -9 ----------- Run | Yrd Mat Mat Matter Collected 482 | 230 81 171 Remotely . | . . . Salvage Created 722 | . 251 471 Parts 53 | . 19 34 Haulers Intercepted . | . . . Recyclers Shooed . | . . . Parts Field Recycled . | . . . Retrieved Matter . | . . . Parts Self-Destructed . | . . . Prevented . | . . . Parts Restored . | . . . Kills | -11 -10 -9 ------- Run | Yrd Mat Mat Combat Hostiles Destroyed 20 | . 7 13 Guns 20 | . 7 13 Classes Destroyed 6 | . 3 3 Recycler 1 | . . 1 Watcher 1 | . 1 . Swarmer 10 | . 3 7 Grunt 6 | . 4 2 Duelist 1 | . . 1 Sentry 3 | . . 3 Best Kill Streak 4 | . 3 4 Combat Bots Only 4 | . 3 4 Max Kills in Single Turn 1 | . 1 1 Gunslinging . | . . . Exploded . | . . . Melee . | . . . Uniques/NPCs Destroyed . | . . . Combat | -11 -10 -9 -------- Run | Yrd Mat Mat Hostile Shots Fired 190 | . 38 152 Missed 52 | . 10 42 Hits 138 | . 28 110 Melee 7 | . . 7 Projectile 131 | . 28 103 Critical Strikes 7 | . . 7 Actively Blocked 2 | . . 2 Damage Taken 1857 | . 404 1453 Core 485 | . 84 401 Absorbed by Shields . | . . . Redirected to Shielding 36 | . . 36 Core Remaining (%) 83 | 100 66 . Volleys Fired 81 | . 23 58 Largest 2 | . 2 2 Hottest 90 | . 90 70 Shots Fired 108 | . 41 67 Gun 108 | . 41 67 Cannon . | . . . Launcher . | . . . Special . | . . . Kinetic 45 | . 9 36 Thermal 43 | . 15 28 Explosive . | . . . Electromagnetic 20 | . 17 3 Robot Hit Streak 19 | . 18 19 Robot Miss Streak 5 | . 5 2 Penetration Max . | . . . Secondary Targets . | . . . Shots Hit Robots 86 | . 28 58 Core Hits 36 | . 13 23 Critical Kills . | . . . Critical Parts Destroyed 1 | . 1 . Critical Strikes 4 | . 3 1 Burn 3 | . 2 1 Destroy 1 | . 1 . Melee Attacks 12 | . . 12 Impact . | . . . Slashing 12 | . . 12 Piercing . | . . . Sneak Attacks 2 | . . 2 Combat Hostiles . | . . . Follow-up Attacks . | . . . Damage Inflicted 1176 | . 397 779 Guns 917 | . 390 527 Cannons . | . . . Explosions . | . . . Melee 252 | . . 252 Ramming 7 | . 7 . Kinetic 285 | . 95 190 Thermal 413 | . 126 287 Explosive . | . . . Electromagnetic 219 | . 169 50 Impact . | . . . Slashing 252 | . . 252 Piercing . | . . . Highest Corruption 5 | . 5 . Average Corruption 5 | . 5 . Corruption Purged . | . . . Corruption Blocked . | . . . Effects 7 | . 7 . Message Errors 1 | . 1 . Matter Fused 3 | . 3 . Heat Flow Errors 1 | . 1 . Data Loss (major) 1 | . 1 . Alerts 1 | . 1 . Overload Shots . | . . . Overflow Damage 37 | . 10 27 Projectiles . | . . . Explosions 10 | . 10 . Melee 27 | . . 27 Knockbacks . | . . . Impact . | . . . Kinetic . | . . . Secondary . | . . . Self-Inflicted Damage 39 | . 39 . Shots 2 | . 2 . Rammed . | . . . Targets Rammed 1 | . 1 . Kicked 1 | . 1 . Crushed . | . . . Highest Temperature 135 | . 135 60 Average Temperature 32 | . 49 16 Received Heat Transfer 486 | . 117 369 Siege Activations . | . . . Martial Activations . | . . . Shielding Activations . | . . . Robots Disrupted . | . . . Combat Hostiles . | . . . Robots Corrupted . | . . . Combat Hostiles . | . . . Parts Fried 1 | . 1 . Impact Corruptions . | . . . Robots Melted . | . . . Combat Hostiles . | . . . Parts Melted 5 | . 3 2 Heat Transferred 1443 | . 518 925 Parts Sabotaged . | . . . Parts Stolen . | . . . Parts Stripped . | . . . Power Chain Reactions . | . . . Alert | -11 -10 -9 ------- Run | Yrd Mat Mat Maximum Alert Level . | . . . Low Security (%) 100 | 100 100 100 Level 1 . | . . . Level 2 . | . . . Level 3 . | . . . Level 4 . | . . . Level 5 . | . . . High Security . | . . . Max Security . | . . . Peak Influence 134 | . 134 105 Initial 12 | . . 12 Average 39 | . 42 42 Influence Increases 669 | . 241 428 Destroy 0b10 Robot/C 400 | . 140 260 Destroy 0b10 Robot/NC 10 | . 5 5 Destroy Leader 92 | . 32 60 Successful Hack 28 | . . 28 Disable Machine 45 | . 30 15 Destroy Structure 34 | . 34 . Lose Combat Pursuer 60 | . . 60 Influence Decreases 669 | . 211 458 Entered New Map 18 | . . 18 Time Decay 516 | . 181 335 Lost Part 135 | . 30 105 Squads Dispatched 3 | . 3 . Investigation 2 | . 2 . Extermination . | . . . Reinforcement 1 | . 1 . Assault . | . . . Garrison . | . . . Intercept . | . . . Searches Triggered . | . . . Construction Impeded . | . . . Haulers Reinforced . | . . . Active Scanning Responses . | . . . Cargo Convoy Interrupts . | . . . Stealth | -11 -10 -9 --------- Run | Yrd Mat Mat Distress Signals 2 | . 1 1 Communications Jammed . | . . . Distress Signals . | . . . Times Spotted 34 | . 11 23 Peak Tracking Total 5 | . 4 5 Tactical Retreats 3 | . . 3 Traps | -11 -10 -9 ------- Run | Yrd Mat Mat Traps Triggered 3 | . 3 . Indirectly . | . . . Trap Hack Attempts . | . . . Triggered . | . . . Disarmed . | . . . Reprogrammed . | . . . Reused . | . . . Traps Extracted . | . . . Installed . | . . . Triggered . | . . . Machines | -11 -10 -9 ---------- Run | Yrd Mat Mat Machines Disabled 3 | . 2 1 Max in Single Turn 2 | . 2 1 Machines Repaired . | . . . Machines Dismantled . | . . . Machines Sabotaged . | . . . Overloaded Fab Kills . | . . . Hacking | -11 -10 -9 --------- Run | Yrd Mat Mat Machines Accessed 4 | . 2 2 Terminals 3 | . 2 1 Fabricators . | . . . Repair Stations . | . . . Recycling Units . | . . . Scanalyzers 1 | . . 1 Garrison Access . | . . . Total Hacks 11 | . 4 7 Successful 5 | . 1 4 Failed 6 | . 3 3 Catastrophic . | . . . Database Lockouts . | . . . Manual 7 | . 4 3 Terminals 7 | . 4 3 Fabricators . | . . . Repair Stations . | . . . Recycling Units . | . . . Scanalyzers 4 | . . 4 Garrison Access . | . . . Terminal Hacks 1 | . 1 . Unreport Threat 1 | . 1 . Fabricator Hacks . | . . . Repair Station Hacks . | . . . Recycling Unit Hacks . | . . . Scanalyzer 2 | . . 2 Insert Component 1 | . . 1 Analyze 1 | . . 1 Garrison Access Hacks . | . . . Unauthorized Hacks 2 | . . 2 Terminals 2 | . . 2 Botnet 1 | . . 1 Skim 1 | . . 1 Fabricators . | . . . Repair Stations . | . . . Recycling Units . | . . . Scanalyzers . | . . . Garrison Access . | . . . Data Cores Recovered . | . . . Used . | . . . Hacking Detections 4 | . 2 2 Full Trace Events . | . . . Feedback Events . | . . . Feedback Blocked . | . . . Robot Schematics Acquired . | . . . Robots Built . | . . . Authchips . | . . . Time . | . . . Total Robot Build Rating . | . . . Part Schematics Acquired 1 | . . 1 Parts Built . | . . . Authchips . | . . . Time . | . . . Total Part Build Rating . | . . . Part Studies Acquired . | . . . Parts Repaired . | . . . Time . | . . . Parts Recycled . | . . . Recycled Matter . | . . . Retrieved Matter . | . . . Retrieved Components . | . . . Parts Scanalyzed 1 | . . 1 Part Schematics Acquired 1 | . . 1 Parts Damaged . | . . . Bothacking | -11 -10 -9 ------------ Run | Yrd Mat Mat Used RIF Installer . | . . . Robots Hacked . | . . . Non-combat . | . . . Combat . | . . . Robot Hacks Applied . | . . . Relay Couplers Released . | . . . Fabnet Peak Effective % . | . . . Robots Rewired . | . . . Allies Hacked . | . . . Hacks Repelled . | . . . Allies | -11 -10 -9 -------- Run | Yrd Mat Mat Total Allies . | . . . Largest Group . | . . . Highest-Rated Group . | . . . Highest-Rated Ally . | . . . Total Orders . | . . . Ally Attacks . | . . . Total Damage . | . . . Kills . | . . . Allies Corrupted . | . . . Allies Melted . | . . . Intel | -11 -10 -9 ------- Run | Yrd Mat Mat Active Infowar (turns) . | . . . Robot Analysis Total . | . . . Derelict Logs Recovered . | . . . Drone Launches . | . . . Drone Recoveries . | . . . Exploration | -11 -10 -9 ------------- Run | Yrd Mat Mat Turns Passed 1626 | 110 551 965 Spaces Moved 649 | 63 190 396 Core 22 | 9 . 13 Treads 319 | . . 319 Legs 298 | 54 180 64 Wheels 10 | . 10 . Hover . | . . . Flight . | . . . Fastest Speed 50 | 50 100 160 Average Speed 206 | 153 247 194 Slowest Speed 700 | 190 400 700 Overloaded Moves . | . . . Propulsion Burnouts . | . . . Robots Hopped . | . . . Potential Cave-ins . | . . . Cave-ins Triggered . | . . . Exploration Rate (%) 26 | 5 46 29 Regions Visited 2 Branch Regions . Pre-discovered Areas . | . . . Known Exits Taken . | . . . Unknown Exits Taken 2 | 1 1 . Scrap Searched . | . . . Spaces Dug . | . . . Terrain Destroyed 42 | . 42 . Melee . | . . . Projectile . | . . . AOE 42 | . 42 . Terrain Rammed . | . . . Walls Destroyed . | . . . Machines Disabled . | . . . Actions | -11 -10 -9 --------- Run | Yrd Mat Mat Total 813 | 74 229 510 Wait 24 | . 5 19 Move 647 | 62 189 396 Hop . | . . . Pick Up 22 | 7 3 12 Fast Attach 8 | 5 3 . Attach 14 | . 3 11 Detach 1 | . 1 . Swap 2 | . . 2 Drop 1 | . 1 . Fire 81 | . 23 58 Melee 12 | . . 12 Ram . | . . . Kick 1 | . 1 . Crush . | . . . Escape Stasis . | . . . Rewire . | . . . Trap . | . . . Miscellaneous . | . . . Route ------- -11/Scrapyard -10/Materials (discovered 2 exits: *Mat / [*Min]) -9/Materials (discovered 1 exit: [*Min]) History --------- Turn | Location | Event 5 | -11/Scrapyard | Discovered new exit (range 16) 111 | -11/Scrapyard | Entered Materials 224 | -10/Materials | Discovered new exit (range 15) 322 | -10/Materials | Lost 3 parts (1p2w) 329 | -10/Materials | Build established: Mutant 478 | -10/Materials | Discovered new exit (range 14) 662 | -10/Materials | Entered another Materials area 662 | -9/Materials | Evolved 2 slots: Propulsion x1, Utility x1 931 | -9/Materials | Lost 4 parts (1p3n) 1024 | -9/Materials | Core integrity fell below 50% 1105 | -9/Materials | Discovered new exit (range 16) 1616 | -9/Materials | Core integrity fell below 20% 1627 | -9/Materials | Destroyed by Y-45 Defender with Heavy Assault Rifle Last Messages --------------- R-06 Scavenger collects Heat Sink. K-01 Serf collects debris. R-06 Scavenger collects Beam Rifle. R-06 Scavenger destroyed. R-06 Scavenger collects Lgt. Treads. R-06 Scavenger collects Heat Sink. K-01 Serf collects debris. R-06 Scavenger collects Com. Wheel. K-01 Serf collects debris. W-16 Scout sends out distress signal. Critical hit (Burn: +37). Lgt. Ion Engine destroyed. Med. Laser destroyed. Critical hit (Burn: +37). Targeting Computer destroyed. Critical hit (Burn: +37). Lgt. Treads destroyed. Critical hit (Burn: +37). Lgt. Treads destroyed. Core Shielding destroyed. Map ----- +----------------------------------------------------+ | | | | | ????????????????????????????????????????????????? | | ????????????????????????????????????????????????? | | ????????????????????????????????????????????????? | | ????????????????????????????????????????????????? | | ????????????????????????????????????????????????? | | ????????????????????????????????????????????????? | | ????????????????????????????????????????????????? | | ????????????????????????????????????????????????? | | ????????????????????????????????????????????????? | | ????????????????????????????????????????????????? | | ????????????????????????????????????????????????? | | ????????????????????????????????????????????????? | | ????????????????????????????????????????????????? | | ????????????????????????????????????????????????? | | ????????????????????????????????????????????????? | | ????????????????????????????????????????????????? | | ????????????????????????????????????????????????? | | ?????????????????#??????????????????????????????? | | ?????????????????# ?????????????????????????????? | | ?????????????????# ????????????????????????????? | | ????????????????## #?????????????##????????????? | | ????????????????# ########## ###??????????? | | ????????????????# Y #???????? | | ????????????????# t @ t +???????? | | ????????????????# ##Y ##### #????????????? | | ??????????????????????# #?????????????????????? | | ??????????????????????# #???????????#?????????? | | ??????????????????????# #???????????# ????????? | | ??????????????????????# #???????????# ????????? | | ??????????????????????# #??????????? ????????? | | ??????????????????????# #???????????# ##+?????? | | ??????????????????????# #???????????# #????? | | ??????????????????????# #???????????# +????? | | ??????????????????????# #???????????# #????? | | ??????????????????????# #???????????# #????? | | ??????????????????????# #???????????# #????? | | ??????????????????????# #???????????# #????? | | ??????????????????????# ##########??# #????? | | ??????????????????????# # #??# #????? | | ?????????????????###### # """#??# #????? | | ????????????????## # # """####+##+#????? | | ????????????????# # # """## #????? | | ????????????????# # *#= ## #????? | | ????????????????# # !*# """## """ !#????? | | ????????????????# # %+% """## """ #????? | | ???############## # [#% """## """ #????? | | ???# |## # # ## = #????? | | ???# #### ### ##############+####???? | +----------------------------------------------------+ Best States ------------- Heat Dissipation 28 Energy Generation 10 Energy Capacity 125 Matter Stores 300 Matter Capacity 300 Sight Range 16 Terrain Scan Density 10 Core Shielding 20 Evasion (%) 55 Targeting Accuracy 5 Recoil Reduction 3 Item Schematics ----------------- Com. Wheel | -9/Materials | Scanalyzed Robot Schematics ------------------ None Fabricated ------------ Nothing Repaired ---------- Nothing Studied --------- None Alien Tech Used ----------------- None Achievements -------------- None Challenges ------------ None Game ------ Seed SegregatorThrowingGravjet Manual? 0 Play Time 00:14:04 Cumulative 22.5 hours Start 2026.06.30 @ 21:34:06 End 2026.07.01 @ 11:34:26 Sessions 2 Manual Loads 0 Difficulty Rogue Special Mode None Game No. 30 Rogue 25 Adventurer 1 Explorer 4 Win Type - Total 0 Types 0/0/0/0/0/0/0/0/0/0 Lore% 10 Gallery% 19 Achievement% 17 Wizard Run 0 Options --------- Layout 1 ASCII 0 Keyboard 0 Movement Arrows Keybinds 0 Fullscreen 1 Font 24/Smallcaps Map View 60x50 Zoom Use 0% Tactical HUD 0 Map Filters NONE Filters NONE Steam 1 RUN: 2e895a23-cf71-4c90-8b14-beb58e5fe989